bitfinex/quotes_ETHUSD_20220308
["timestamp","ask_amount","ask_price","bid_price","bid_amount"]
[1646778784993,4.8,2575.1,2574.9,0.08130456]
[1646778785836,7.8,2575.1,2574.9,0.08130456]
[1646778786037,4.3,2575.1,2574.9,0.08130456]
[1646778786437,1.3,2575.1,2574.9,0.08130456]
[1646778786842,3.5,2575.0,2574.9,0.08130456]
[1646778787248,4.5,2575.0,2574.9,0.08130456]
[1646778787444,3.5,2575.0,2574.9,0.08130456]
[1646778787646,4.5,2575.0,2574.9,0.08130456]
[1646778788144,1.0,2575.0,2574.9,0.08130456]
[1646778788345,3.5,2575.0,2574.9,0.08130456]
[1646778788746,4.5,2575.0,2574.9,0.08130456]
[1646778788946,3.5,2575.0,2574.9,0.08130456]
[1646778789189,4.5,2575.0,2574.9,0.08130456]
[1646778789385,3.5,2575.0,2574.9,0.08130456]
[1646778789585,4.5,2575.0,2574.9,0.08130456]
[1646778791388,16.4,2575.0,2574.9,0.08130456]
[1646778794236,4.5,2575.0,2574.9,0.08130456]
[1646778794442,1.0,2575.0,2574.9,0.08130456]
[1646778794840,17.47167,2575.1,2574.9,0.08130456]
[1646778795040,17.17167,2575.1,2574.9,0.08130456]
[1646778795843,18.59940091,2575.1,2574.9,0.08130456]
[1646778796042,11.9,2575.0,2574.9,0.08130456]
[1646778796242,12.9,2575.0,2574.9,0.08130456]
[1646778798792,1.0,2575.0,2574.9,0.08130456]
[1646778799190,5.27167,2575.1,2574.9,0.08130456]
[1646778799491,17.17167,2575.1,2574.9,0.08130456]
[1646778800290,17.17167,2575.1,2574.9,0.08012976]
[1646778804041,16.2,2575.1,2574.9,0.08012976]
[1646778804488,17.62773091,2575.1,2574.9,0.08012976]
[1646778805285,16.2,2575.1,2574.9,0.08012976]
[1646778806489,17.62773091,2575.1,2574.9,0.08012976]
[1646778806688,16.2,2575.1,2574.9,0.08012976]
[1646778807292,17.62773091,2575.1,2574.9,0.08012976]
[1646778809745,16.2,2575.1,2574.9,0.08012976]
[1646778811344,18.10555547,2575.1,2574.9,0.08012976]
[1646778811546,16.2,2575.1,2574.9,0.08012976]
[1646778812596,18.10555547,2575.1,2574.9,0.08012976]
[1646778812799,16.2,2575.1,2574.9,0.08012976]
[1646778812995,11.9,2575.0,2574.9,0.08012976]
[1646778813195,12.9,2575.0,2574.9,0.08012976]
[1646778813395,12.93702,2575.0,2574.9,0.08012976]
[1646778813597,12.9,2575.0,2574.9,0.08012976]
[1646778816644,14.80321171,2575.0,2574.9,0.08012976]
[1646778816845,12.9,2575.0,2574.9,0.08012976]
[1646778817047,14.98600569,2575.0,2574.9,0.08012976]
[1646778818847,13.08279398,2575.0,2574.9,0.08012976]
[1646778819047,14.98600569,2575.0,2574.9,0.08012976]
[1646778820300,13.08279398,2575.0,2574.9,0.08012976]
[1646778820496,16.47373949,2575.0,2574.9,0.08012976]
[1646778820802,16.81311148,2575.0,2574.9,0.08012976]
[1646778820997,16.77609148,2575.0,2574.9,0.08012976]
[1646778821397,16.77609148,2575.0,2574.9,2.976e-05]
[1646778821597,16.77609148,2575.0,2574.8,0.00012482]
[1646778821598,12.8719,2574.9,2574.8,0.00012482]
[1646778821798,16.8719,2574.9,2574.8,0.00012482]
[1646778821999,21.04799148,2574.9,2574.8,0.00012482]
[1646778822397,21.08501148,2574.9,2574.8,0.00012482]
[1646778823449,21.04799148,2574.9,2574.8,0.00012482]
[1646778824645,11.9,2574.5,2574.4,0.00329619]
[1646778824846,17.32587963,2574.5,2574.4,0.00329619]
[1646778825047,21.16260278,2574.5,2574.4,0.00329619]
[1646778825246,21.50197477,2574.5,2574.4,0.00329619]
[1646778825447,18.14804926,2574.5,2574.4,0.00329619]
[1646778825646,11.9,2574.2,2573.6,0.4968]
[1646778825848,11.9,2574.0,2573.6,0.4968]
[1646778826056,12.2,2574.0,2573.6,0.4968]
[1646778826248,13.38279764,2574.0,2573.6,0.4968]
[1646778826448,13.38279764,2574.0,2573.3,1.1442]
[1646778826695,13.38279764,2574.0,2573.4,1.58860712]
[1646778826899,12.87208,2573.9,2573.4,1.58860712]
[1646778827101,12.87208,2573.9,2573.5,0.00331099]
[1646778827300,11.9,2573.7,2573.5,0.00331099]
[1646778827798,12.9,2573.7,2573.5,0.00331099]
[1646778827998,12.9,2573.7,2573.4,1.58860712]
[1646778828399,12.9,2573.7,2573.5,0.00314375]
[1646778829000,11.9,2573.6,2573.5,0.00314375]
[1646778829200,13.2,2573.6,2573.5,0.4968]
[1646778829402,13.2,2573.6,2573.5,1.58860712]
[1646778829601,13.2,2573.6,2573.5,1.59175256]
[1646778829800,13.2,2573.6,2573.5,0.00314544]
[1646778830442,13.2,2573.6,2573.3,1.5887221]
[1646778830944,13.2,2573.6,2573.4,0.00314547]
[1646778831343,16.7,2573.6,2573.4,0.00314547]
[1646778831747,11.9,2573.3,2572.7,1.53875802]
[1646778832150,13.2,2573.3,2572.7,1.53875802]
[1646778833148,13.2,2573.3,2572.9,0.00315323]
[1646778833754,16.7,2573.3,2572.9,0.00315323]
[1646778834047,16.7,2573.3,2572.7,1.53875802]
[1646778834290,11.9,2573.1,2573.0,0.00315318]
[1646778834695,13.2,2573.1,2573.0,0.00315318]
[1646778835298,13.2,2573.1,2572.6,1.1421]
[1646778835499,13.2,2573.1,2572.9,0.00315275]
[1646778836499,13.2,2573.1,2572.6,1.1421]
[1646778836696,0.03711,2573.0,2572.9,0.00315235]
[1646778837696,0.03711,2573.0,2572.6,1.1421]
[1646778837942,13.82185178,2573.1,2572.8,0.00315238]
[1646778838947,13.82185178,2573.1,2572.6,1.1421]
[1646778839143,13.82185178,2573.1,2572.8,0.00315246]
[1646778839345,0.18279764,2573.0,2572.8,0.00315246]
[1646778839543,12.87248,2572.9,2572.8,0.00315246]
[1646778839743,14.17248,2572.9,2572.8,0.00315246]
[1646778840152,14.17248,2572.9,2572.2,1.21]
[1646778840352,14.35527764,2572.9,2572.7,0.00315256]
[1646778841351,12.87255,2572.6,2572.2,1.21]
[1646778841801,14.17255,2572.6,2572.2,1.21]
[1646778842799,14.17255,2572.6,2572.3,0.0031528]
[1646778843601,14.17255,2572.6,2572.2,1.21]
[1646778844001,14.17255,2572.6,2572.3,0.00315277]
[1646778844901,14.17255,2572.6,2571.7,1.14]
[1646778845105,11.9,2572.3,2571.7,1.14]
[1646778845302,15.1456,2572.3,2571.7,1.14]
[1646778846154,2.12843954,2572.2,2571.7,1.14]
[1646778846355,11.9,2572.1,2571.9,0.00315303]
[1646778847355,11.9,2572.1,2571.7,1.14]
[1646778847555,11.9,2572.1,2571.7,1.09315304]
[1646778847754,13.2,2572.1,2571.3,3.5507]
[1646778847955,11.9,2571.9,2571.3,3.5507]
[1646778848155,12.2,2571.9,2571.3,2.3403]
[1646778848355,3.5,2571.8,2571.3,2.3403]
[1646778848557,10.20442558,2571.7,2571.1,7.5543]
[1646778848759,10.20442558,2571.7,2571.1,7.36]
[1646778848760,10.50442558,2571.7,2571.1,7.36]
[1646778848955,11.50442558,2571.7,2571.0,1.4376]
[1646778850099,11.50442558,2571.7,2571.2,0.00143759]
[1646778850601,11.9,2571.6,2571.2,0.00143759]
[1646778850803,12.9,2571.6,2571.0,1.2433]
[1646778851003,13.2,2571.6,2571.0,1.2433]
[1646778851204,13.2,2571.6,2571.3,0.00345325]
[1646778851603,1.3,2571.6,2571.3,0.00345325]
[1646778851907,0.3,2571.6,2571.3,0.00345325]
[1646778852110,0.3,2571.7,2571.0,1.2433]
[1646778852303,5.50889,2572.0,2571.3,0.00345325]
[1646778852502,0.0359,2571.9,2571.3,0.00345325]
[1646778852703,11.9359,2571.9,2571.3,0.00345325]
[1646778852954,11.9,2571.7,2571.3,0.00345325]
[1646778853145,12.2,2571.7,2571.3,0.00345325]
[1646778853351,11.9,2571.5,2571.0,1.2433]
[1646778853749,13.2,2571.5,2571.0,1.2433]
[1646778853953,15.4,2571.4,2571.0,1.2433]
[1646778854351,12.9,2571.4,2571.0,1.2433]
[1646778854850,12.9,2571.4,2571.1,0.00344091]
[1646778855051,16.4,2571.4,2571.1,0.00344091]
[1646778855251,12.9,2571.4,2571.1,0.00344091]
[1646778855651,16.4,2571.4,2571.0,1.2433]
[1646778855851,16.43557,2571.4,2571.0,1.2433]
[1646778856154,12.93557,2571.4,2571.1,0.00344088]
[1646778856553,12.9,2571.4,2571.1,0.00344088]
[1646778856798,12.9,2571.4,2571.0,1.2433]
[1646778857103,12.9,2571.4,2571.1,0.00344271]
[1646778857104,11.9,2571.2,2571.1,0.00344271]
[1646778857299,16.7,2571.2,2571.1,0.00344271]
[1646778857802,13.2,2571.2,2571.1,0.00344271]
[1646778858002,13.2,2571.2,2570.6,0.4968]
[1646778858399,11.9,2571.1,2571.0,0.00344277]
[1646778858799,12.9,2571.1,2571.0,0.00344277]
[1646778859202,12.9,2571.1,2570.6,0.4968]
[1646778859603,1.0,2571.1,2570.9,0.00344283]
[1646778859799,0.6,2571.2,2570.9,0.00344283]
[1646778860000,0.3,2571.2,2570.9,0.00344283]
[1646778860466,0.3,2571.2,2570.6,0.4968]
[1646778860467,12.2,2571.2,2570.6,0.4968]
[1646778860658,15.7,2571.2,2570.9,0.00344256]
[1646778860860,16.7,2571.2,2570.9,0.00344256]
[1646778861659,16.7,2571.2,2570.6,0.4968]
[1646778861857,16.7,2571.2,2570.9,0.00344256]
[1646778862459,17.67312,2571.2,2570.9,0.00344256]
[1646778862859,17.67312,2571.2,2570.6,0.4968]
[1646778863259,17.67312,2571.2,2570.6,0.45024256]
[1646778865798,17.71208,2571.2,2570.6,0.45024256]
[1646778866799,17.89487764,2571.2,2570.6,0.45024256]
[1646778868059,17.85591764,2571.2,2570.8,0.00371914]
[1646778868259,21.1575899,2571.2,2570.8,0.00371914]
[1646778868959,11.9,2571.0,2570.6,0.45024256]
[1646778869158,11.9,2570.8,2570.6,0.45024256]
[1646778869361,11.9,2570.7,2570.6,0.45024256]
[1646778869662,15.4,2570.7,2570.6,0.45024256]
[1646778869859,16.4,2570.7,2570.6,0.45024256]
[1646778870263,16.35,2570.7,2570.6,0.45024256]
[1646778870465,12.85,2570.7,2570.6,0.45024256]
[1646778870863,16.38316,2570.7,2570.6,0.45024256]
[1646778871067,12.88316,2570.7,2570.6,0.45024256]
[1646778871464,16.35,2570.7,2570.6,0.45024256]
[1646778877752,16.25,2570.7,2570.6,0.45024256]
[1646778887297,16.25,2570.7,2570.5,0.00344271]
[1646778887298,12.72333,2570.6,2570.5,0.00344271]
[1646778887499,17.19666,2570.6,2570.5,0.00344271]
[1646778887699,18.49666,2570.6,2570.5,0.00344271]
[1646778888118,18.49666,2570.6,2569.9,1.1309]
[1646778888299,0.973335,2570.4,2569.9,1.1309]
[1646778888505,0.97335,2570.3,2569.9,1.1309]
[1646778889500,0.97335,2570.3,2570.0,0.00344301]
[1646778890100,3.5,2570.2,2570.0,0.00344301]
[1646778890301,4.5,2570.2,2570.0,0.00344301]
[1646778890546,1.0,2570.2,2569.9,1.1309]
[1646778890746,1.27335,2570.3,2569.9,1.1309]
[1646778890948,1.27335,2570.3,2570.0,0.00344602]
[1646778891149,0.97335,2570.3,2570.0,0.00344602]
[1646778891646,0.97335,2570.3,2569.9,1.1309]
[1646778892050,0.97335,2570.3,2570.0,0.003446]
[1646778893051,0.97335,2570.3,2569.9,1.1309]
[1646778893252,0.97335,2570.3,2570.0,0.003446]
[1646778893452,3.5,2570.2,2570.0,0.003446]
[1646778893851,4.5,2570.2,2570.0,0.003446]
[1646778894053,4.5,2570.2,2569.9,1.1309]
[1646778894295,4.5,2570.2,2570.0,0.00344301]
[1646778895295,3.5,2570.1,2569.9,1.1309]
[1646778895495,3.5,2570.1,2569.7,2.4275]
[1646778895496,4.47339,2570.1,2569.7,2.4275]
[1646778895695,5.77339,2570.1,2570.0,0.00344301]
[1646778896496,5.77339,2570.1,2569.5,0.1945]
[1646778896694,5.77339,2570.1,2569.9,0.00344304]
[1646778896899,2.27339,2570.1,2569.9,0.00344304]
[1646778897299,1.27339,2570.1,2569.9,0.00344304]
[1646778897699,1.27339,2570.1,2569.5,0.1945]
[1646778897960,1.27339,2570.1,2569.9,0.00344351]
[1646778898348,0.3,2570.1,2569.9,0.00344351]
[1646778898747,5.47335,2570.3,2569.9,0.00344351]
[1646778899051,5.47335,2570.3,2569.5,0.1945]
[1646778899248,5.47335,2570.3,2569.9,0.00344351]
[1646778900046,5.47335,2570.3,2569.5,0.1945]
[1646778900246,0.9734159,2570.2,2569.5,0.1945]
[1646778900452,3.5,2570.1,2570.0,0.00344345]
[1646778900650,0.9734159,2570.2,2570.0,0.00344345]
[1646778901051,0.9734159,2570.2,2570.0,0.0024105]
[1646778901251,0.9734159,2570.2,2569.5,0.1945]
[1646778901452,3.5,2570.1,2569.5,0.1945]
[1646778901698,4.5,2570.1,2569.5,0.1945]
[1646778903500,4.5,2570.1,2569.4,1.1376]
[1646778903902,1.0,2570.1,2569.4,1.1376]
[1646778904307,0.97346,2570.1,2569.4,1.1376]
[1646778905302,4.47346,2570.1,2569.6,0.0037199]
[1646778905749,5.47346,2570.1,2569.6,0.0037199]
[1646778905951,1.97346,2570.1,2569.6,0.0037199]
[1646778906150,1.97346,2570.1,2569.4,1.1376]
[1646778906350,0.97346,2570.1,2569.7,0.00371983]
[1646778907451,1.27346,2570.1,2569.4,1.1376]
[1646778907652,1.27346,2570.1,2569.8,0.0037198]
[1646778908451,1.27346,2570.1,2569.4,1.1376]
[1646778908850,1.27346,2570.1,2569.8,0.00371977]
[1646778909702,1.27346,2570.1,2569.4,1.1376]
[1646778909902,3.5,2570.0,2569.8,0.00365002]
[1646778910102,1.27346,2570.1,2569.8,0.00365002]
[1646778910303,1.57346,2570.1,2569.8,0.00365002]
[1646778910703,1.27346,2570.1,2569.8,0.00365002]
[1646778910904,1.27346,2570.1,2569.4,1.1376]
[1646778911102,3.5,2570.0,2569.4,1.1376]
[1646778911303,4.5,2570.0,2569.8,0.00365002]
[1646778911503,1.0,2570.0,2569.8,0.00365002]
[1646778911707,1.57346,2570.1,2569.8,0.00365002]
[1646778912118,1.27346,2570.1,2569.4,1.1376]
[1646778912309,1.27346,2570.1,2569.5,1.59085079]
[1646778912608,1.27346,2570.1,2569.8,0.00365002]
[1646778913251,1.27346,2570.1,2569.4,1.1376]
[1646778913650,1.27346,2570.1,2569.8,0.00343372]
[1646778913950,3.5,2570.0,2569.8,0.00343372]
[1646778914350,4.5,2570.0,2569.8,0.00343372]
[1646778914551,2.57346,2570.1,2569.4,1.1376]
[1646778914756,3.5,2570.0,2569.8,0.00343375]
[1646778915154,1.0,2570.0,2569.8,0.00343375]
[1646778915353,1.57346,2570.1,2569.8,0.00343375]
[1646778915552,3.5,2570.0,2569.8,0.00343375]
[1646778915753,3.5,2570.0,2569.5,1.59092263]
[1646778915754,1.0,2570.0,2569.5,1.59092263]
[1646778915953,4.5,2570.0,2569.8,0.00343372]
[1646778916154,2.51523373,2570.1,2569.8,0.00343372]
[1646778916353,1.0,2570.0,2569.8,0.00343372]
[1646778916801,3.51523373,2570.1,2569.8,0.00343372]
[1646778917003,3.21523373,2570.1,2569.5,1.59092263]
[1646778917201,2.21523373,2570.1,2569.8,0.00344503]
[1646778917504,3.21523373,2570.1,2569.8,0.00344503]
[1646778917703,3.5,2570.0,2569.8,0.00344503]
[1646778918103,3.5,2570.0,2569.5,1.59092263]
[1646778918302,4.5,2570.0,2569.5,1.59092263]
[1646778918503,3.5,2570.0,2569.8,0.00344503]
[1646778918702,1.0,2570.0,2569.8,0.00344503]
[1646778918902,3.21523373,2570.1,2569.8,0.00344503]
[1646778919102,2.21523373,2570.1,2569.8,0.00344503]
[1646778919303,3.21523373,2570.1,2569.5,1.59092263]
[1646778919501,2.21523373,2570.1,2569.5,1.59092263]
[1646778919802,3.21523373,2570.1,2569.8,0.003445]
[1646778920011,2.21523373,2570.1,2569.8,0.003445]
[1646778920201,3.21523373,2570.1,2569.8,0.003445]
[1646778920450,2.21523373,2570.1,2569.8,0.003445]
[1646778920649,3.21523373,2570.1,2569.5,1.59092263]
[1646778920850,2.21523373,2570.1,2569.8,0.00344335]
[1646778921151,0.94177373,2570.0,2569.8,0.00344335]
[1646778921753,0.94177373,2570.0,2569.5,1.59092263]
[1646778921954,0.94177373,2570.0,2569.8,0.00344338]
[1646778922955,0.94177373,2570.0,2569.5,1.59092263]
[1646778923253,0.94177373,2570.0,2569.8,0.00344338]
[1646778924054,0.94177373,2570.0,2569.5,1.59092263]
[1646778924294,0.94177373,2570.0,2569.5,1.58973373]
[1646778924496,0.94177373,2570.0,2569.8,0.00344362]
[1646778925498,0.94177373,2570.0,2569.5,1.58973373]
[1646778925698,0.94177373,2570.0,2569.8,0.00344362]
[1646778926099,0.94177373,2570.0,2569.4,1.1376]
[1646778927202,0.94177373,2570.0,2569.4,1.0876]
[1646778927608,0.94177373,2569.9,2569.4,1.0876]
[1646778927802,1.24177373,2569.9,2569.4,1.0876]
[1646778928048,0.3,2569.9,2569.6,0.00142484]
[1646778928248,1.24177373,2570.0,2569.6,0.00142484]
[1646778928849,1.24177373,2570.0,2569.4,1.0876]
[1646778929249,1.24177373,2570.0,2569.7,0.00142479]
[1646778930050,1.24177373,2570.0,2569.4,1.0876]
[1646778930449,0.94177373,2569.9,2569.4,1.0876]
[1646778930650,0.94177373,2569.9,2569.7,0.00344626]
[1646778931449,0.94177373,2569.9,2569.4,1.0876]
[1646778931699,0.94177373,2569.9,2569.7,0.00351178]
[1646778932500,0.94177373,2569.9,2569.4,1.0876]
[1646778932905,0.94177373,2569.9,2569.7,0.00351178]
[1646778933703,0.94177373,2569.9,2569.4,1.0876]
[1646778933900,0.94177373,2569.9,2569.7,0.00351178]
[1646778934901,0.94177373,2569.9,2569.4,1.0876]
[1646778935304,0.94177373,2569.9,2569.7,0.00311421]
[1646778936148,0.94177373,2569.9,2569.4,1.0876]
[1646778936351,0.94177373,2569.9,2569.7,0.00311421]
[1646778937358,0.94177373,2569.9,2569.4,1.0876]
[1646778937654,0.94177373,2569.9,2569.7,0.00311421]
[1646778938654,0.94177373,2569.9,2569.4,1.0876]
[1646778938854,0.94177373,2569.9,2569.7,0.00313638]
[1646778939054,0.94177373,2569.9,2569.4,1.04073638]
[1646778942300,0.94177373,2569.9,2569.4,0.79073638]
[1646778942499,0.94177373,2569.9,2569.5,0.00169595]
[1646778943359,0.94177373,2569.9,2569.4,0.79073638]
[1646778943554,0.94177373,2569.9,2569.6,0.00371993]
[1646778944555,0.94177373,2569.8,2569.4,0.79073638]
[1646778944758,1.24177373,2569.8,2569.6,0.00371997]
[1646778945158,0.94177373,2569.8,2569.6,0.00371997]
[1646778945759,0.94177373,2569.8,2569.4,0.79073638]
[1646778945963,0.94177373,2569.8,2569.6,0.00371993]
[1646778946159,1.24177373,2569.8,2569.6,0.00371993]
[1646778947005,1.24177373,2569.8,2569.5,1.5910405]
[1646778947204,1.24177373,2569.8,2569.6,0.00359438]
[1646778947401,0.94177373,2569.8,2569.6,0.00359438]
[1646778947600,1.24177373,2569.8,2569.6,0.00359438]
[1646778948201,1.24177373,2569.8,2569.5,1.5910405]
[1646778948402,1.24177373,2569.8,2569.6,0.00359438]
[1646778949302,1.24177373,2569.8,2569.5,1.5910405]
[1646778949701,1.24177373,2569.8,2569.6,0.00359438]
[1646778949903,0.94177373,2569.8,2569.6,0.00359438]
[1646778950305,0.94177373,2569.7,2569.6,0.00359438]
[1646778950549,0.94177373,2569.7,2569.4,0.79073638]
[1646778950753,0.94177373,2569.7,2569.4,1.09073638]
[1646778950950,0.94177373,2569.8,2569.6,0.00344182]
[1646778951752,0.94177373,2569.8,2569.5,1.59111157]
[1646778951953,0.94177373,2569.8,2569.6,0.00344182]
[1646778952953,0.94177373,2569.8,2569.5,1.59111157]
[1646778953154,0.94177373,2569.8,2569.6,0.00344182]
[1646778954203,0.94177373,2569.8,2569.5,1.59111157]
[1646778954404,0.94177373,2569.8,2569.6,0.00344453]
[1646778955406,0.94177373,2569.8,2569.5,1.59111157]
[1646778955811,0.94177373,2569.8,2569.6,0.00344453]
[1646778956616,0.94177373,2569.8,2569.5,1.59111157]
[1646778956812,0.94177373,2569.8,2569.6,0.00344453]
[1646778957814,0.94177373,2569.8,2569.5,1.59111157]
[1646778958052,0.94177373,2569.8,2569.6,0.00344414]
[1646778959052,0.94177373,2569.8,2569.5,1.59111157]
[1646778959256,0.94177373,2569.9,2569.6,0.00344414]
[1646778959951,0.94177373,2569.9,2569.6,3.50344414]
[1646778960156,0.94177373,2569.9,2569.7,1.59111157]
[1646778960356,0.94177373,2570.0,2569.5,0.3898]
[1646778960553,0.94177373,2569.9,2569.6,1.5942919]
[1646778960753,0.94177373,2570.0,2569.6,1.8942919]
[1646778960953,0.94177373,2570.0,2569.7,1.59084772]
[1646778961157,0.94177373,2570.1,2569.7,1.59084772]
[1646778962505,0.94177373,2570.0,2569.7,1.59084772]
[1646778963105,0.94177373,2570.1,2569.7,1.59084772]
[1646778965107,0.94177373,2570.0,2569.7,1.59084772]
[1646778965309,0.94177373,2570.1,2569.7,1.59084772]
[1646778967067,0.94177373,2570.2,2569.7,1.59084772]
[1646778971507,0.94177373,2570.3,2569.7,1.59084772]
[1646778971711,0.94177373,2570.3,2569.8,0.9730776]
[1646778971912,0.94177373,2570.3,2569.9,1.59084772]
[1646778972412,0.94177373,2570.4,2569.9,1.59084772]
[1646778972612,0.94177373,2570.4,2569.9,1.59001796]
[1646778973056,0.94177373,2570.4,2569.9,5.39001796]
[1646778973254,0.94177373,2570.4,2569.9,3.8]
[1646778973854,1.44024991,2570.7,2569.9,3.8]
[1646778973855,0.94177373,2570.5,2569.9,3.8]
[1646778976460,0.94177373,2570.6,2570.1,0.9729841]
[1646778976701,0.94177373,2570.6,2570.1,1.2729841]
[1646778978108,1.24177373,2570.7,2570.1,1.2729841]
[1646778978306,0.94177373,2570.6,2570.1,1.2729841]
[1646778978505,0.94177373,2570.7,2570.1,1.2729841]
[1646778980553,0.94177373,2570.8,2570.1,1.2729841]
[1646778980755,0.33702,2571.1,2570.1,1.2729841]
[1646778980756,0.94177373,2570.7,2570.1,1.2729841]
[1646778981653,0.94177373,2570.8,2570.1,1.2729841]
[1646778982057,0.94177373,2570.7,2570.1,1.2729841]
[1646778982464,0.94177373,2570.8,2570.1,1.2729841]
[1646778983060,1.24177373,2570.9,2570.1,1.2729841]
[1646778983260,0.94177373,2570.9,2570.1,1.2729841]
[1646778985400,0.94177373,2570.8,2570.1,1.2729841]
[1646778986001,0.94177373,2570.9,2570.1,1.2729841]
[1646778988550,0.95426315,2571.0,2570.1,1.2729841]
[1646778988950,0.94177373,2571.0,2570.1,1.2729841]
[1646778992403,0.94177373,2571.0,2570.1,2.2458441]
[1646778992604,0.94177373,2571.0,2570.3,0.9728566]
[1646778993014,1.29141089,2571.1,2570.3,1.2728566]
[1646778993207,0.99141089,2571.1,2570.3,2.5062566]
[1646778993605,0.99055367,2571.1,2570.3,2.5062566]
[1646778993805,0.97793651,2571.1,2570.3,2.5062566]
[1646778994006,0.94177373,2571.0,2570.3,2.5062566]
[1646778994207,0.97793651,2571.1,2570.3,2.5062566]
[1646778996153,0.94177373,2571.1,2570.3,2.5062566]
[1646778997759,1.24868527,2571.2,2570.3,3.4790266]
[1646778997961,1.24868527,2571.2,2570.5,1.9454597]
[1646778998163,0.94868527,2571.2,2570.5,2.2454597]
[1646778998361,0.00691154,2571.2,2570.5,2.2454597]
[1646778998561,0.94177373,2571.3,2570.5,2.2454597]
[1646778998860,0.01361002,2571.4,2570.6,1.59033404]
[1646778999059,0.01361002,2571.4,2570.7,1.1815]
[1646778999306,0.95538375,2571.4,2570.7,1.4815]
[1646778999501,0.01361002,2571.4,2570.7,1.4815]
[1646778999703,0.97967373,2571.5,2570.7,1.4815]
[1646779000002,0.97967373,2571.5,2570.7,13.7713]
[1646779000202,0.97967373,2571.5,2570.8,0.9726482]
[1646779000203,0.0379,2571.5,2570.8,0.9726482]
[1646779000403,0.0379,2571.5,2570.9,2.2450931]
[1646779000808,0.02595219,2571.4,2570.9,2.2450931]
[1646779002810,0.02595219,2571.4,2570.9,2.4393931]
[1646779003466,0.02595219,2571.4,2571.0,0.1943]
[1646779004453,0.02595219,2571.6,2571.0,0.1943]
[1646779004653,0.02595219,2571.6,2570.9,15.3118631]
[1646779005657,0.02595219,2571.6,2571.1,0.972455]
[1646779006254,0.02595219,2571.6,2571.1,1.272455]
[1646779006704,0.02595219,2571.6,2571.1,4.966755]
[1646779007708,0.02595219,2571.8,2571.1,4.966755]
[1646779008008,0.02595219,2571.8,2571.1,4.772455]
[1646779008409,0.02595219,2571.8,2571.1,5.744855]
[1646779009010,0.02595219,2571.8,2571.1,14.144855]
[1646779009210,0.02595219,2571.8,2571.2,0.1943]
[1646779009416,0.02595219,2571.8,2571.3,1.9447436]
[1646779009810,0.02595219,2571.8,2571.4,0.3]
[1646779010465,0.02595219,2571.8,2571.5,0.972364]
[1646779010654,0.02595219,2571.8,2571.5,1.272364]
[1646779012261,0.00314228,2571.9,2571.5,1.272364]
[1646779012961,0.02595219,2572.0,2571.5,1.272364]
[1646779013164,0.96772592,2572.0,2571.5,1.272364]
[1646779013363,0.00314231,2571.9,2571.5,1.272364]
[1646779014212,0.02595219,2572.0,2571.5,1.272364]
[1646779014410,0.00343107,2571.9,2571.5,1.272364]
[1646779015212,0.00343107,2571.9,2571.6,1.2263]
[1646779015412,0.02595219,2571.8,2571.6,1.2263]
[1646779018455,0.00360075,2571.9,2571.6,1.2263]
[1646779019154,0.02595219,2572.1,2571.6,1.2263]
[1646779019353,0.00360079,2571.9,2571.6,1.2263]
[1646779020255,0.02595219,2572.1,2571.6,1.2263]
[1646779020455,0.00360079,2571.9,2571.6,15.070784]
[1646779021355,0.00360079,2571.9,2571.7,3.5]
[1646779021560,0.02595219,2571.8,2571.7,3.5]
[1646779021808,0.02595219,2571.8,2571.7,0.3]
[1646779022009,0.02595219,2571.8,2571.6,6.970784]
[1646779022610,0.02595219,2571.8,2571.7,11.9]
[1646779023215,0.02595219,2571.8,2571.7,15.4]
[1646779024712,0.0033969,2571.9,2571.7,15.4]
[1646779025113,0.02595219,2572.2,2571.7,15.4]
[1646779025313,0.00342672,2571.9,2571.7,15.4]
[1646779025557,0.00342672,2571.9,2571.8,15.4]
[1646779025766,0.00342672,2571.9,2571.8,15.7]
[1646779026157,0.02595219,2572.2,2571.8,16.7]
[1646779026360,0.02595219,2572.2,2571.9,12.87072559]
[1646779026561,0.00342668,2572.0,2571.9,16.37072559]
[1646779026768,0.00342668,2572.0,2571.9,14.17072559]
[1646779026964,0.00342668,2572.0,2571.9,17.67072559]
[1646779027264,0.00342668,2572.0,2571.9,14.17072559]
[1646779027466,0.02595219,2572.2,2571.9,14.17072559]
[1646779027669,0.02595219,2572.0,2571.9,12.9]
[1646779027864,0.02595219,2572.0,2571.9,13.8721003]
[1646779028264,0.02595219,2572.0,2571.9,14.1721003]
[1646779028867,0.02595219,2572.0,2571.9,13.8721003]
[1646779029067,0.02595219,2572.0,2571.9,14.1721003]
[1646779029320,0.97010515,2572.7,2571.9,14.1721003]
[1646779029515,0.96895228,2572.7,2571.9,13.8721003]
[1646779029715,0.02717855,2572.7,2571.9,23.8537303]
[1646779029914,0.02717855,2572.7,2571.9,20.8537303]
[1646779030114,0.02717855,2572.7,2571.9,23.5537303]
[1646779030414,0.00413559,2572.6,2571.9,23.8537303]
[1646779030614,0.00413559,2572.6,2571.9,23.5537303]
[1646779030915,0.00413559,2572.6,2571.9,23.8537303]
[1646779031114,0.00413559,2572.6,2571.9,23.7480303]
[1646779031316,0.00413559,2572.6,2571.9,24.0480303]
[1646779032119,0.00413559,2572.6,2571.9,24.4378303]
[1646779032319,0.00413559,2572.6,2571.9,21.4378303]
[1646779032520,0.00413559,2572.6,2572.2,11.9]
[1646779032723,0.00413559,2572.6,2572.2,15.11837]
[1646779033762,0.0078311,2572.6,2572.2,15.11837]
[1646779034762,0.00413559,2572.6,2572.2,15.11837]
[1646779034963,0.0078311,2572.6,2572.2,15.11837]
[1646779035763,0.00413559,2572.6,2572.2,15.11837]
[1646779036166,0.0078311,2572.6,2572.2,15.11837]
[1646779037122,0.00413559,2572.6,2572.2,15.11837]
[1646779037317,0.00772023,2572.6,2572.2,15.11837]
[1646779038318,0.00413559,2572.6,2572.2,15.11837]
[1646779038519,0.00772023,2572.6,2572.2,15.11837]
[1646779039520,0.00413559,2572.6,2572.2,15.11837]
[1646779039725,0.00772023,2572.6,2572.2,15.11837]
[1646779040764,0.00413559,2572.6,2572.2,15.11837]
[1646779040968,4.42648906,2573.2,2572.4,0.9719652]
[1646779041165,0.92648906,2573.2,2572.4,0.9719652]